Cogmind - Beta 16.1 @@@ ROGUE MODE // 2026.02.24 @ 21:00:26 Player: Puck Result: Self-destructed Performance ------------- Evolutions (5) 2500 Regions Visited (5) 1000 Robots Destroyed (17) 85 Value Destroyed (517) 517 Prototype IDs (11) 220 Alien Tech Used (0) 0 Bonus (800) 800 TOTAL SCORE: 5122 Bonus ------- Registered with UFD 300 Met Optimus in HQ 500 Cogmind --------- Core Integrity 916/1000 Matter 210/300 Energy 520/520 System Corruption 1% Temperature Hot (215) Movement Rolling (125) Ox2 Location -5/Factory Parts ------- > --- POWER (2) -------- Fission Core Fission Core > --- PROPULSION (5) --- Armored Wheel Armored Huge Wheel > --- UTILITY (8) ------ Heat Sink High-capacity Storage Unit Advanced Signal Interpreter Light Armor Plating Hacking Suite Makeshift Hacking Suite A0-MCA's Component Scanner Improved Dynamic Insulation System > --- WEAPON (2) ------- Wave Gun Enhanced Gauss Cannon > --- INVENTORY (20) --- Fission Core Enhanced Fission Core Scrap Suit Medium Storage Unit Improved Sensor Array Improved Signal Interpreter Improved Transmission Jammer Improved Heavy Armor Plating Dynamic Insulation System Long-range Tractor Beam Scrapoid Pod Spread Laser Junk Cannon (0) Power Maul Peak State ------------ > --- POWER ------------ Fission Core Fission Core > --- PROPULSION ------- Armored Wheel Armored Wheel Armored Huge Wheel > --- UTILITY ---------- Heat Sink High-capacity Storage Unit Advanced Signal Interpreter Light Armor Plating Hacking Suite Makeshift Hacking Suite A0-MCA's Component Scanner Improved Dynamic Insulation System > --- WEAPON ----------- Junk Cannon > --- INVENTORY -------- Fission Core Enhanced Fission Core Scrap Suit Medium Storage Unit Improved Sensor Array Improved Signal Interpreter Improved Transmission Jammer Light Armor Plating Improved Heavy Armor Plating Dynamic Insulation System Long-range Tractor Beam Scrapoid Pod Spread Laser Wave Gun Enhanced Gauss Cannon Power Maul [Rating: 72] Favorites ----------- Power Ion Engine Engine Ion Engine Power Core Fission Core Propulsion Armored Wheel Wheel Armored Wheel Utility High-capacity Storage Unit Device Heat Sink Storage High-capacity Storage Unit Processor Advanced Signal Interpreter Hackware Makeshift Hacking Suite Protection Light Armor Plating Weapon Spread Laser Energy Gun Spread Laser Ballistic Gun Light Assault Rifle Ballistic Cannon Enhanced Gauss Cannon Launcher Subdweller Shrapnel Launcher Special Weapon Junk Cannon Build | -11 -10 -10 -10 -7 -5 ------- Run | Yrd Mat Min Sub Scr Fac Slots Evolved 10 | . . . . . 10 Power 1 | . . . . . 1 Propulsion 3 | . . . . . 3 Utility 6 | . . . . . 6 Weapon . | . . . . . . Parts Attached 38 | 6 9 . 4 4 15 Power 5 | 1 . . 1 1 2 Engine 3 | 1 . . 1 1 . Core 2 | . . . . . 2 Reactor . | . . . . . . Propulsion 7 | 2 2 . . 1 2 Treads . | . . . . . . Leg . | . . . . . . Wheel 7 | 2 2 . . 1 2 Hover . | . . . . . . Flight . | . . . . . . Utility 15 | 1 4 . 1 . 9 Device 5 | . 1 . 1 . 3 Storage 3 | 1 2 . . . . Processor 2 | . . . . . 2 Hackware 2 | . . . . . 2 Protection 3 | . 1 . . . 2 Artifact . | . . . . . . Weapon 11 | 2 3 . 2 2 2 Energy Gun 7 | 1 3 . 1 1 1 Energy Cannon . | . . . . . . Ballistic Gun 1 | 1 . . . . . Ballistic Cannon 1 | . . . . . 1 Launcher 1 | . . . 1 . . Special Weapon 1 | . . . . 1 . Impact Weapon . | . . . . . . Slashing Weapon . | . . . . . . Piercing Weapon . | . . . . . . Special Melee Weapon . | . . . . . . Unidentified Prototypes 1 | . . . . 1 . Parts Lost 4 | . . . 2 . 2 Power 1 | . . . 1 . . Propulsion 1 | . . . . . 1 Utility 2 | . . . 1 . 1 Weapon . | . . . . . . Highest Loss Streak 2 | . . . 2 . 2 To Critical Strikes . | . . . . . . Average Backups 16 | . 11 20 18 19 12 Power . | . 1 1 . . 1 Propulsion 1 | . 1 3 3 2 . Utility 8 | . 6 9 8 10 6 Weapon 5 | . 2 7 7 6 2 Tool/Special . | . . . . . . Unused Backups 22 | . 3 . . 9 10 Power 2 | . . . . . 2 Propulsion . | . . . . . . Utility 10 | . 1 . . 4 5 Weapon 9 | . 2 . . 5 2 Tool/Special 1 | . . . . . 1 Average Slot Usage (%) 92 | . 99 100 100 94 82 Engine 11 | . 14 14 14 14 . Core 1 | . . . . . 9 Wheel 22 | . 28 28 28 22 16 Device 11 | . 3 . 11 14 10 Storage 12 | . 14 14 14 14 5 Processor 2 | . . . . . 9 Hackware 1 | . . . . . 8 Protection 3 | . 9 14 2 . 6 Energy Gun 22 | . 21 28 24 27 6 Peak Build Rating 72 | 6 14 14 14 32 72 Average Rating 25 | 4 9 14 13 18 61 On Entrance 12 | . 6 14 14 14 25 Avg Prop Armor Cover (%) . | . . . . . . Naked Turns . | . . . . . . Heaviest Build 81 | 11 52 52 57 52 81 Greatest Support 52 | 26 26 24 24 28 52 Greatest Overweight (x) 2 | . 2 2 2 2 1 Average Overweight (x) 1 | . 1 2 1 1 1 Largest Inventory Capacity 20 | 8 20 20 20 20 20 Average Capacity 19 | 7 19 20 20 20 20 Most Carried 20 | 1 20 20 20 20 19 Average Carried 17 | . 11 20 18 19 15 Final Capacity 20 | 8 20 20 20 20 20 Final Carried 20 | 1 20 20 19 20 18 Class Distribution -------------------- 84% | Mutant 15% | Hacker-Mutant Dominant Class ---------------- Mutant | -10/Materials Mutant | -10/Mines Mutant | -10/Subcaves Mutant | -7/Scraptown Hacker-Mutant | -5/Factory Resources | -11 -10 -10 -10 -7 -5 ----------- Run | Yrd Mat Min Sub Scr Fac Matter Collected 664 | 165 206 . 33 60 200 Remotely . | . . . . . . Salvage Created 506 | . 326 . 41 . 139 Parts 21 | . 19 . 2 . . Haulers Intercepted . | . . . . . . Recyclers Shooed . | . . . . . . Parts Field Recycled . | . . . . . . Retrieved Matter . | . . . . . . Parts Self-Destructed 12 | . . . 12 . . Prevented . | . . . . . . Parts Restored . | . . . . . . Kills | -11 -10 -10 -10 -7 -5 ------- Run | Yrd Mat Min Sub Scr Fac Combat Hostiles Destroyed 10 | . 6 . 2 . 2 Guns 9 | . 6 . 2 . 1 Cannons 1 | . . . . . 1 Classes Destroyed 9 | . 5 . 1 . 3 Recycler 1 | . 1 . . . . Mechanic 1 | . . . . . 1 Operator 1 | . 1 . . . . Watcher 4 | . 3 . . . 1 Swarmer 1 | . 1 . . . . Grunt 5 | . 5 . . . . Sentry 1 | . . . . . 1 Programmer 1 | . . . . . 1 Subdweller 2 | . . . 2 . . Best Kill Streak 4 | . 4 . 2 . 1 Combat Bots Only 2 | . 2 . 2 . 1 Max Kills in Single Turn 2 | . 2 . 1 . 1 Gunslinging . | . . . . . . Exploded . | . . . . . . Melee . | . . . . . . Uniques/NPCs Destroyed . | . . . . . . Combat | -11 -10 -10 -10 -7 -5 -------- Run | Yrd Mat Min Sub Scr Fac Hostile Shots Fired 83 | . 33 . 10 . 40 Missed 13 | . 7 . 1 . 5 Hits 70 | . 26 . 9 . 35 Projectile 70 | . 26 . 9 . 35 Critical Strikes 3 | . . . . . 3 Damage Taken 1331 | . 263 . 255 . 813 Core 279 | . 119 . 76 . 84 Absorbed by Shields . | . . . . . . Core Remaining (%) 61 | 100 . . . 22 . Volleys Fired 62 | . 28 . 11 . 23 Largest 2 | . 2 . 2 . 2 Hottest 130 | . 130 . 130 . 128 Shots Fired 102 | . 51 . 18 . 33 Gun 78 | . 51 . 17 . 10 Cannon 10 | . . . . . 10 Launcher 1 | . . . 1 . . Special 13 | . . . . . 13 Kinetic 35 | . 21 . 4 . 10 Thermal 54 | . 30 . 14 . 10 Explosive . | . . . . . . Electromagnetic . | . . . . . . Impact 13 | . . . . . 13 Robot Hit Streak 17 | . 15 . 17 . 13 Robot Miss Streak 7 | . 7 . 1 . 1 Penetration Max . | . . . . . . Secondary Targets . | . . . . . . Shots Hit Robots 71 | . 34 . 9 . 28 Core Hits 45 | . 29 . 13 . 3 Critical Kills . | . . . . . . Critical Parts Destroyed . | . . . . . . Critical Strikes 1 | . . . . . 1 Blast 1 | . . . . . 1 Melee Attacks . | . . . . . . Impact . | . . . . . . Slashing . | . . . . . . Piercing . | . . . . . . Sneak Attacks . | . . . . . . Combat Hostiles . | . . . . . . Follow-up Attacks . | . . . . . . Damage Inflicted 2065 | . 400 . 227 . 1438 Guns 798 | . 400 . 169 . 229 Cannons 278 | . . . . . 278 Explosions 58 | . . . 58 . . Melee . | . . . . . . Ramming . | . . . . . . Kinetic 405 | . 69 . 58 . 278 Thermal 729 | . 331 . 169 . 229 Explosive . | . . . . . . Electromagnetic . | . . . . . . Impact 931 | . . . . . 931 Slashing . | . . . . . . Piercing . | . . . . . . Highest Corruption 1 | . . . . . 1 Average Corruption 1 | . . . . . 1 Corruption Purged . | . . . . . . Corruption Blocked . | . . . . . . Overload Shots . | . . . . . . Overflow Damage 439 | . . . . . 439 Projectiles 439 | . . . . . 439 Explosions . | . . . . . . Melee . | . . . . . . Knockbacks 5 | . . . . . 5 Impact 3 | . . . . . 3 Kinetic 1 | . . . . . 1 Secondary 1 | . . . . . 1 Self-Inflicted Damage 48 | . . . 48 . . Shots 1 | . . . 1 . . Rammed . | . . . . . . Targets Rammed . | . . . . . . Kicked . | . . . . . . Crushed . | . . . . . . Highest Temperature 455 | . 342 . 52 . 455 Average Temperature 136 | . 107 . 33 . 243 Received Heat Transfer 264 | . 102 . 63 . 99 Effects 2 | . . . . . 2 Shutdowns 2 | . . . . . 2 Siege Activations . | . . . . . . Martial Activations . | . . . . . . Shielding Activations . | . . . . . . Robots Disrupted . | . . . . . . Combat Hostiles . | . . . . . . Robots Corrupted 1 | . . . . . 1 Combat Hostiles . | . . . . . . Parts Fried 1 | . . . . . 1 Impact Corruptions 14 | . . . . . 14 Robots Melted . | . . . . . . Combat Hostiles . | . . . . . . Parts Melted 4 | . 4 . . . . Heat Transferred 1234 | . 691 . 210 . 333 Parts Sabotaged . | . . . . . . Parts Stolen . | . . . . . . Parts Stripped . | . . . . . . Power Chain Reactions . | . . . . . . Alert | -11 -10 -10 -10 -7 -5 ------- Run | Yrd Mat Min Sub Scr Fac Maximum Alert Level . | . . . . . . Low Security (%) 100 | 100 100 100 . . 100 Level 1 . | . . . . . . Level 2 . | . . . . . . Level 3 . | . . . . . . Level 4 . | . . . . . . Level 5 . | . . . . . . High Security . | . . . . . . Max Security . | . . . . . . Peak Influence 50 | . 50 10 . . 40 Initial 10 | . . 10 . . . Average 7 | . 14 2 . . 4 Influence Increases 287 | . 186 . . . 101 Destroy 0b10 Robot/C 160 | . 120 . . . 40 Destroy 0b10 Robot/NC 35 | . 25 . . . 10 Destroy Leader 48 | . 26 . . . 22 Successful Hack 8 | . . . . . 8 Destroy Structure 6 | . . . . . 6 Lose Combat Pursuer 30 | . 15 . . . 15 Influence Decreases 267 | . 158 28 . . 81 Entered New Map 18 | . . 18 . . . Time Decay 229 | . 158 10 . . 61 Lost Part 20 | . . . . . 20 Squads Dispatched 6 | . 2 . . . 4 Investigation 2 | . 1 . . . 1 Extermination 1 | . . . . . 1 Reinforcement 1 | . 1 . . . . Assault 2 | . . . . . 2 Garrison . | . . . . . . Intercept . | . . . . . . Searches Triggered . | . . . . . . Construction Impeded . | . . . . . . Haulers Reinforced . | . . . . . . Active Scanning Responses . | . . . . . . Cargo Convoy Interrupts . | . . . . . . Stealth | -11 -10 -10 -10 -7 -5 --------- Run | Yrd Mat Min Sub Scr Fac Distress Signals . | . . . . . . Communications Jammed . | . . . . . . Distress Signals . | . . . . . . Times Spotted 19 | . 9 . 2 . 8 Peak Tracking Total 3 | . 3 . 2 . 3 Tactical Retreats 2 | . 1 . . . 1 Traps | -11 -10 -10 -10 -7 -5 ------- Run | Yrd Mat Min Sub Scr Fac Traps Triggered 1 | . . . . . 1 Indirectly . | . . . . . . Trap Hack Attempts . | . . . . . . Triggered . | . . . . . . Disarmed . | . . . . . . Reprogrammed . | . . . . . . Reused . | . . . . . . Traps Extracted . | . . . . . . Installed . | . . . . . . Triggered . | . . . . . . Machines | -11 -10 -10 -10 -7 -5 ---------- Run | Yrd Mat Min Sub Scr Fac Machines Disabled . | . . . . . . Max in Single Turn . | . . . . . . Garrison Access 1 | . . . . . 1 Machines Repaired . | . . . . . . Machines Dismantled . | . . . . . . Machines Sabotaged . | . . . . . . Overloaded Fab Kills . | . . . . . . Hacking | -11 -10 -10 -10 -7 -5 --------- Run | Yrd Mat Min Sub Scr Fac Machines Accessed 15 | . 1 . . 10 4 Terminals 3 | . 1 . . . 2 Fabricators 1 | . . . . . 1 Repair Stations . | . . . . . . Recycling Units 1 | . . . . . 1 Scanalyzers . | . . . . . . Garrison Access . | . . . . . . Total Hacks 74 | . 4 . . 56 14 Successful 61 | . . . . 56 5 Failed 13 | . 4 . . . 9 Catastrophic 2 | . . . . . 2 Database Lockouts . | . . . . . . Manual 9 | . . . . 1 8 Terminals 14 | . 4 . . . 10 Fabricators 2 | . . . . . 2 Repair Stations . | . . . . . . Recycling Units 2 | . . . . . 2 Scanalyzers . | . . . . . . Garrison Access . | . . . . . . Terminal Hacks 59 | . . . . 56 3 Record 49 | . . . . 49 . Robot Analysis 6 | . . . . 6 . Branch Access Points 1 | . . . . . 1 Terminal Index 1 | . . . . . 1 Fabricator Index 1 | . . . . . 1 Proto ID Catalog 1 | . . . . 1 . Fabricator Hacks 1 | . . . . . 1 Network Status 1 | . . . . . 1 Repair Station Hacks . | . . . . . . Recycling Unit Hacks . | . . . . . . Scanalyzer . | . . . . . . Garrison Access Hacks . | . . . . . . Unauthorized Hacks 1 | . . . . . 1 Terminals 1 | . . . . . 1 Botnet 1 | . . . . . 1 Fabricators . | . . . . . . Repair Stations . | . . . . . . Recycling Units . | . . . . . . Scanalyzers . | . . . . . . Garrison Access . | . . . . . . Data Cores Recovered . | . . . . . . Used . | . . . . . . Hacking Detections 5 | . 1 . . . 4 Full Trace Events 2 | . 1 . . . 1 Feedback Events . | . . . . . . Feedback Blocked . | . . . . . . Robot Schematics Acquired . | . . . . . . Robots Built . | . . . . . . Authchips . | . . . . . . Time . | . . . . . . Total Robot Build Rating . | . . . . . . Part Schematics Acquired . | . . . . . . Parts Built . | . . . . . . Authchips . | . . . . . . Time . | . . . . . . Total Part Build Rating . | . . . . . . Part Studies Acquired . | . . . . . . Parts Repaired . | . . . . . . Time . | . . . . . . Parts Recycled . | . . . . . . Recycled Matter . | . . . . . . Retrieved Matter . | . . . . . . Retrieved Components . | . . . . . . Parts Scanalyzed . | . . . . . . Part Schematics Acquired . | . . . . . . Parts Damaged . | . . . . . . Bothacking | -11 -10 -10 -10 -7 -5 ------------ Run | Yrd Mat Min Sub Scr Fac Used RIF Installer . | . . . . . . Robots Hacked . | . . . . . . Non-combat . | . . . . . . Combat . | . . . . . . Robot Hacks Applied . | . . . . . . Relay Couplers Released 3 | . . . . . 3 Machine Destruction 3 | . . . . . 3 Fabnet Peak Effective % . | . . . . . . Robots Rewired . | . . . . . . Allies Hacked . | . . . . . . Hacks Repelled . | . . . . . . Allies | -11 -10 -10 -10 -7 -5 -------- Run | Yrd Mat Min Sub Scr Fac Total Allies . | . . . . . . Largest Group . | . . . . . . Highest-Rated Group . | . . . . . . Highest-Rated Ally . | . . . . . . Initial UFD Resources 39 | . . . . . 39 Total Orders . | . . . . . . Ally Attacks . | . . . . . . Total Damage . | . . . . . . Kills . | . . . . . . Allies Corrupted . | . . . . . . Allies Melted . | . . . . . . Intel | -11 -10 -10 -10 -7 -5 ------- Run | Yrd Mat Min Sub Scr Fac Active Infowar (turns) 677 | . 133 . . . 544 Sensors 677 | . 133 . . . 544 Robot Analysis Total 6 | . . . . 6 . Derelict Logs Recovered 3 | . . . 2 1 . Drone Launches . | . . . . . . Drone Recoveries . | . . . . . . Exploration | -11 -10 -10 -10 -7 -5 ------------- Run | Yrd Mat Min Sub Scr Fac Turns Passed 3786 | 36 477 88 310 2090 785 Spaces Moved 2978 | 31 331 23 220 1744 629 Core 4 | 4 . . . . . Treads . | . . . . . . Legs . | . . . . . . Wheels 2974 | 27 331 23 220 1744 629 Hover . | . . . . . . Flight . | . . . . . . Fastest Speed 50 | 50 90 120 105 105 108 Average Speed 114 | 85 108 120 119 117 108 Slowest Speed 120 | 100 120 120 120 120 108 Overloaded Moves . | . . . . . . Propulsion Burnouts . | . . . . . . Robots Hopped . | . . . . . . Potential Cave-ins . | . . . . . . Cave-ins Triggered . | . . . . . . Exploration Rate (%) 31 | 3 43 10 21 95 14 Regions Visited 5 Branch Regions 3 Pre-discovered Areas 1 | . . . 1 . . Known Exits Taken . | . . . . . . Unknown Exits Taken 5 | 1 1 1 1 1 . Scrap Searched 6 | . . . . 6 . Spaces Dug . | . . . . . . Terrain Destroyed 24 | . . . 21 . 3 Melee . | . . . . . . Projectile 3 | . . . . . 3 AOE 21 | . . . 21 . . Terrain Rammed . | . . . . . . Walls Destroyed . | . . . . . . Machines Disabled . | . . . . . . Actions | -11 -10 -10 -10 -7 -5 --------- Run | Yrd Mat Min Sub Scr Fac Total 3256 | 37 401 83 247 1784 704 Wait 95 | . 5 61 11 1 17 Move 2973 | 30 330 22 219 1743 629 Hop . | . . . . . . Pick Up 43 | 1 20 . 1 12 9 Fast Attach 15 | 6 3 . . 5 1 Attach 15 | . . . 2 . 13 Detach 4 | . 2 . . . 2 Swap 15 | . 6 . 3 1 5 Drop 31 | . 7 . . 19 5 Fire 62 | . 28 . 11 . 23 Melee . | . . . . . . Ram . | . . . . . . Kick . | . . . . . . Crush . | . . . . . . Escape Stasis . | . . . . . . Rewire 3 | . . . . 3 . Trap . | . . . . . . Miscellaneous . | . . . . . . Route ------- -11/Scrapyard -10/Materials (discovered 2 exits: [*Mat] / [*Min]) -10/Mines -10/Subcaves -7/Scraptown (discovered 2 exits: *Fac x2) -5/Factory (discovered 2 exits: Upp x2) History --------- Turn | Location | Event 17 | -11/Scrapyard | Discovered new exit (range 16) 37 | -11/Scrapyard | Entered Materials 172 | -10/Materials | Discovered new exit (range 15) 304 | -10/Materials | Build established: Mutant 314 | -10/Materials | Discovered new exit (range 4) 514 | -10/Materials | Entered Mines 585 | -10/Mines | Discovered new exit (range 5) 602 | -10/Mines | Entered Subcaves 603 | -10/Subcaves | Approached by a straggling Scientist 630 | -10/Subcaves | Learned location of Zion (-7) 641 | -10/Subcaves | Core integrity fell below 50% 778 | -10/Subcaves | Learned Materials trap positions 912 | -10/Subcaves | Entered Scraptown 1336 | -7/Scraptown | Heard Great Nut preacher, LISTEN AND RECITE! 1341 | -7/Scraptown | Discovered new exit (range 5) 1375 | -7/Scraptown | Scanned Subdweller tech in exchange for log data 1420 | -7/Scraptown | Visited Red Mages 1477 | -7/Scraptown | Visited Symbiants 1507 | -7/Scraptown | Visited Cyclists 1544 | -7/Scraptown | Visited Awakened 1787 | -7/Scraptown | Visited Shadow of the Wyrm 1829 | -7/Scraptown | Visited UFD Registry 1829 | -7/Scraptown | Registered with UFD as "Chainguard" 1855 | -7/Scraptown | Visited Fellowship of the Rings 1889 | -7/Scraptown | Visited Assassins FH 1963 | -7/Scraptown | Guru changed UFD alias to "Fiberpod" 2091 | -7/Scraptown | Visited Science Testing Area 2111 | -7/Scraptown | Visited A0-MCA Data Center 2118 | -7/Scraptown | Given a C rating by A0-MCA 2123 | -7/Scraptown | Found A0-MCA's Component Scanner 2145 | -7/Scraptown | Visited DA-N13 Charitable Foundation 2150 | -7/Scraptown | Found DCF Scrap (29 items) 2385 | -7/Scraptown | Visited Scrap Suit Storage 2391 | -7/Scraptown | Found Scrap Suit 2435 | -7/Scraptown | Visited Scrapoid Pod Storage 2441 | -7/Scraptown | Found Scrapoid Pod 2463 | -7/Scraptown | Visited Scrapoid Research Area 2492 | -7/Scraptown | Visited Junk Cannon Lab 2506 | -7/Scraptown | Found Prototype Special Weapon 2506 | -7/Scraptown | Identified Junk Cannon 2551 | -7/Scraptown | Visited Abandonware Association 2572 | -7/Scraptown | Learned abandonware demo "ERRANTS.EXE" 2601 | -7/Scraptown | Visited Science Guys 2670 | -7/Scraptown | Visited Analyses Database 2760 | -7/Scraptown | Discovered new exit (range 5) 2906 | -7/Scraptown | Met Optimus 2906 | -7/Scraptown | Accepted into 0bPrime 3002 | -7/Scraptown | Entered Factory 3002 | -5/Factory | Evolved 10 slots: Power x1, Propulsion x3, Utility x6 3192 | -5/Factory | Identified exit to Upper Caves 3482 | -5/Factory | Build established: Hacker-Mutant 3787 | -5/Factory | Self-destructed Last Messages --------------- 03719_ K-01 Serf collects debris. 03722_ Penetrated by Slug. 03723_ K-01 Serf collects debris. 03735_ Dropped Junk Cannon. 03738_ Acquired Junk Cannon. 03754_ Slug penetrates Fabricator. 03757_ Acquired 6 matter. 03757_ Penetrated by Slug. 03759_ Y-64 Sentinel Imp. Treads blasted off. 03760_ ALERT: Garrison Access compromised, dispatching multiple assault carriers. 03762_ Penetrated by Slug. 03765_ Lgt. Armor Plating destroyed. 03768_ Critical hit (Burn: +37). 03771_ Y-64 Sentinel destroyed. 03772_ Acquired 27 matter. 03773_ Power failure, Fission Core shutdown. 03777_ U-05 Engineer builds a Wall. 03782_ Arm. Wheel destroyed. 03785_ Destroyed Tesla Rifle. 03785_ P-70 Sage knocked back. Map ----- +----------------------------------------------------+ | # # #???????????????????????????? | | # #] """" """" #???????????????????????????? | | # # """" """" #???????????????????????????? | | # # """" """" #???????????????????????????? | | # # """" """" #???????????????????????????? | | # # #???????????????????????????? | | # """" """" #???????????????????????????? | | + """" """" #???????????????????????????? | | "" # """" """" #???????????????????????????? | | "" !# """" """" #???????????????????????????? | | "" !!# #???????????????????????????? | | #] #??#????????????????????????? | | ###+######+###?? ????????????????????????? | | ## #??# #?##############??????????????? | | ?# #??# #?# #??????????????? | | ## #??# #?# #??????????????? | | # #??# #?# #??????????????? | | # #??# #?# #??????????????? | | ###+#### #??# #?# """ """ #??????????????? | | #??????# #### ### """ """ #??????????????? | | #??????# # """ """ #??????????????? | | ##??????+ !# u #??????????????? | | ????????# """ # "" "" #??????????????? | | ????????# """"" # ""F"" #??????????????? | | ????????# """"" #% % """ #??????????????? | | ????????## # @ #??????????????? | | ?????????# ###/;#########??????????????? | | ?????????# wpp #########????????????? | | ?????????# ?????? | | ?????????# ?????? | | ?????????## """ """ """ % ?????? | | ??????????# """ """ """ ######## ??????? | | ??????????# """ """ """ ##?????????? ??????? | | ??????????#??""" """ """ ##?????????????????? | | ????????????? k #??????????????????? | | ??????????????"? """ #??????????????????? | | ???????????????? """ #??????????????????? | | ??????????????????"" !!! #??????????????????? | | ???????????????????" !! #??????????????????? | | ??????????????????? !! #??????????????????? | | ???????????????????" #??????????????????? | | ???????????????????? #??????????????????? | | ???????????????????? #??????????????????? | | ??????????????????????? ???????????????????? | | ??????????????????????? ??????????????????????? | | ?????????????????????????????????????????????????? | | ?????????????????????????????????????????????????? | | ?????????????????????????????????????????????????? | | ?????????????????????????????????????????????????? | | ?????????????????????????????????????????????????? | +----------------------------------------------------+ Best States ------------- Heat Dissipation 50 Energy Generation 31 Energy Capacity 520 Matter Stores 300 Matter Capacity 300 Sight Range 16 Robot Scan Range 15 Terrain Scan Density 10 EM Shielding 3 Armor Coverage 300 Evasion (%) 42 Offensive Hacking 21 Item Schematics ----------------- None Robot Schematics ------------------ None Fabricated ------------ Nothing Repaired ---------- Nothing Studied --------- None Alien Tech Used ----------------- None Achievements -------------- Civilization 2243 Link The Feds Longdome?! Challenges ------------ None Game ------ Seed BackupSmartbombSheargun Manual? 0 Play Time 00:53:38 Cumulative 284.2 hours Start 2026.02.23 @ 19:21:45 End 2026.02.24 @ 21:00:26 Sessions 7 Manual Loads 0 Difficulty Rogue Special Mode None Game No. 136 Rogue 96 Adventurer 29 Explorer 11 Win Type - Total 13 Types 8/0/1/2/0/0/1/0/1/0 Lore% 56 Gallery% 64 Achievement% 48 Wizard Run 0 Options --------- Layout 0 ASCII 0 Keyboard 0 Movement Numpad Keybinds 0 Fullscreen 2 Font 24/Smallcaps Map View 113x50 Zoom Use 0% Tactical HUD 1 Map Filters NONE Filters LOW_CONTRAST(13,24,33) Steam 1 RUN: 945dbe1b-4262-49dd-9757-87abc79b320b